lending/lending_fUSD_20240120
["ID","MTS","AMOUNT","RATE_DAILY","PERIOD"]
[312309776,1705769455542,-500.0,0.000365,2]
[312309777,1705769455551,-500.0,0.000365,2]
[312309778,1705769455561,-500.0,0.000365,2]
[312309779,1705769455570,-500.0,0.000365,2]
[312309780,1705769455579,-500.0,0.000365,2]
[312309781,1705769455588,-500.0,0.000365,2]
[312309782,1705769455597,-500.0,0.000365,2]
[312309783,1705769455607,-500.0,0.000365,2]
[312309784,1705769455616,-500.0,0.000365,2]
[312309785,1705769455625,-500.0,0.000365,2]
[312309786,1705769455634,-500.0,0.000365,2]
[312309787,1705769455643,-500.0,0.000365,2]
[312309788,1705769455653,-500.0,0.000365,2]
[312309789,1705769455662,-500.0,0.000365,2]
[312309790,1705769455671,-500.0,0.000365,2]
[312309791,1705769455680,-500.0,0.000365,2]
[312309792,1705769455690,-500.0,0.000365,2]
[312309793,1705769455699,-500.0,0.000365,2]
[312309794,1705769455709,-500.0,0.000365,2]
[312309795,1705769455718,-500.0,0.000365,2]
[312309796,1705769455728,-500.0,0.000365,2]
[312309797,1705769455737,-500.0,0.000365,2]
[312309798,1705769455747,-500.0,0.000365,2]
[312309799,1705769455759,-500.0,0.000365,2]
[312309800,1705769455771,-500.0,0.000365,2]
[312309801,1705769455780,-500.0,0.000365,2]
[312309802,1705769455790,-500.0,0.000365,2]
[312309803,1705769455800,-500.0,0.000365,2]
[312309804,1705769455809,-500.0,0.000365,2]
[312309805,1705769455818,-500.0,0.000365,2]
[312309806,1705769455828,-500.0,0.000365,2]
[312309807,1705769455837,-500.0,0.000365,2]
[312309808,1705769455847,-500.0,0.000365,2]
[312309809,1705769455856,-500.0,0.000365,2]
[312309810,1705769455866,-500.0,0.000365,2]
[312309811,1705769455875,-500.0,0.000365,2]
[312309812,1705769455884,-500.0,0.000365,2]
[312309813,1705769455893,-500.0,0.000365,2]
[312309814,1705769455902,-500.0,0.000365,2]
[312309815,1705769455911,-500.0,0.000365,2]
[312309816,1705769455920,-500.0,0.000365,2]
[312309817,1705769455931,-500.0,0.000365,2]
[312309818,1705769455940,-500.0,0.000365,2]
[312309819,1705769455949,-500.0,0.000365,2]
[312309820,1705769455958,-500.0,0.000365,2]
[312309821,1705769455967,-500.0,0.000365,2]
[312309822,1705769455977,-500.0,0.000365,2]
[312309823,1705769455986,-300.0,0.000365,2]
[312309824,1705769455995,-500.0,0.000365,2]
[312309825,1705769456005,-500.0,0.000365,2]
[312309826,1705769456015,-500.0,0.000365,2]
[312309827,1705769456025,-500.0,0.000365,2]
[312309828,1705769456035,-500.0,0.000365,2]
[312309829,1705769456046,-500.0,0.000365,2]
[312309830,1705769456057,-500.0,0.000365,2]
[312309831,1705769456066,-500.0,0.000365,2]
[312309832,1705769456075,-500.0,0.000365,2]
[312309833,1705769456084,-500.0,0.000365,2]
[312309834,1705769456094,-500.0,0.000365,2]
[312309835,1705769456103,-500.0,0.000365,2]
[312309836,1705769456113,-500.0,0.000365,2]
[312309837,1705769456122,-500.0,0.000365,2]
[312309838,1705769456131,-500.0,0.000365,2]
[312309839,1705769456140,-500.0,0.000365,2]
[312309840,1705769456150,-500.0,0.000365,2]
[312309841,1705769456159,-500.0,0.000365,2]
[312309842,1705769456168,-500.0,0.000365,2]
[312309843,1705769456177,-500.0,0.000365,2]
[312309844,1705769456186,-500.0,0.000365,2]
[312309845,1705769456196,-500.0,0.000365,7]
[312309846,1705769456205,-150.0,0.00036527,2]
[312309847,1705769456215,-150.0,0.00036527,2]
[312309848,1705769456224,-153.84,0.0003653,2]
[312309849,1705769456233,-869.79,0.00036613,15]
[312309850,1705769456243,-154.0,0.000367,7]
[312309851,1705769456252,-2000.0,0.00036703,2]
[312309852,1705769456261,-200.0,0.00036703,2]
[312309853,1705769456271,-2000.0,0.00036703,2]
[312309854,1705769456280,-200.0,0.00036703,2]
[312309855,1705769456290,-2000.0,0.00036703,2]
[312309856,1705769456299,-200.0,0.00036703,2]
[312309857,1705769456308,-200.0,0.00036704,2]
[312309858,1705769456318,-500.0,0.0003671,2]
[312309859,1705769456328,-9891.5706653,0.00036711,2]
[312309860,1705769456338,-200.0,0.00036712,10]
[312309861,1705769456347,-165.512026,0.00036741,2]
[312309862,1705769456359,-2580.035297,0.00036741,2]
[312309863,1705769456368,-7694.22031,0.00036741,2]
[312309864,1705769456377,-7651.641823,0.00036741,2]
[312309865,1705769456386,-397.247805,0.00036741,2]
[312309866,1705769456395,-1841.511521,0.00036741,2]
[312309867,1705769456405,-5306.14429,0.00036741,2]
[312309868,1705769456414,-5327.237969,0.00036741,2]
[312309869,1705769456424,-1589.976747,0.00036741,2]
[312309870,1705769456433,-2035.290778,0.00036741,2]
[312309871,1705769456442,-40014.4,0.00036741,2]
[312309872,1705769456451,-955.93024,0.00036741,2]
[312309873,1705769456462,-365.059769,0.00036741,7]
[312309874,1705769456471,-365.059769,0.00036741,7]
[312309875,1705769456480,-151.0,0.00036741,7]
[312309876,1705769456489,-350.973492,0.00036741,7]
[312309877,1705769456499,-350.973492,0.00036741,7]
[312309878,1705769456508,-151.0,0.00036741,7]
[312309879,1705769456518,-608.91,0.000368,2]
[312309880,1705769456526,-1000.0,0.000368,7]
[312309881,1705769456535,-154.27609843,0.0003682,2]
[312309882,1705769456544,-243.6145975,0.00036859,2]
[312309883,1705769456553,-229.00741884,0.00036859,2]
[312309884,1705769456563,-800.0,0.00036869,15]
[312309885,1705769456575,-184.13974982,0.00036875,9]
[312309886,1705769456584,-165.51992,0.00036892,2]
[312309887,1705769456594,-167.845247,0.00036892,2]
[312309888,1705769456603,-255.0,0.000369,2]
[312309889,1705769456612,-2000.0,0.000369,2]
[312309890,1705769456621,-1007.86666148,0.000369,30]
[312309891,1705769456630,-3024.43,0.00036986,2]
[312309892,1705769456640,-200.0,0.00036987,11]
[312309893,1705769456649,-100000.0,0.00037,7]
[312309894,1705769456659,-700.0,0.00037,2]
[312309895,1705769456668,-8000.0,0.00037,2]
[312309896,1705769456798,-200.0,0.00037,2]
[312309897,1705769456807,-200000.0,0.00037,8]
[312309898,1705769456816,-152.853887,0.00037,7]
[312309899,1705769456826,-1000.0,0.00037,2]
[312309900,1705769456835,-10000.0,0.00037,15]
[312309901,1705769456845,-10000.0,0.00037,15]
[312309902,1705769456854,-10000.0,0.00037,15]
[312309903,1705769456863,-10000.0,0.00037,15]
[312309904,1705769456872,-10000.0,0.00037,15]
[312309905,1705769456881,-12246.0,0.00037,15]
[312309906,1705769456890,-2000.0,0.00037058,2]
[312309907,1705769456899,-2000.0,0.0003707,2]
[312309908,1705769456908,-200.0,0.0003707,2]
[312309909,1705769456918,-2000.0,0.0003707,2]
[312309910,1705769456927,-200.0,0.0003707,2]
[312309911,1705769456936,-2000.0,0.0003707,2]
[312309912,1705769456946,-200.0,0.0003707,2]
[312309913,1705769456955,-200.0,0.00037072,2]
[312309914,1705769456964,-1000.0,0.000371,15]
[312309915,1705769456974,-165.512026,0.00037194,2]
[312309916,1705769456984,-2580.035297,0.00037194,2]
[312309917,1705769456993,-7694.22031,0.00037194,2]
[312309918,1705769457002,-7651.641823,0.00037194,2]
[312309919,1705769457011,-397.247805,0.00037194,2]
[312309920,1705769457021,-1841.511521,0.00037194,2]
[312309921,1705769457031,-5306.14429,0.00037194,2]
[312309922,1705769457040,-5327.237969,0.00037194,2]
[312309923,1705769457049,-1589.976747,0.00037194,2]
[312309924,1705769457059,-2035.290778,0.00037194,2]
[312309925,1705769457069,-40014.4,0.00037194,2]
[312309926,1705769457078,-150.508268,0.00037194,2]
[312309927,1705769457088,-955.93024,0.00037194,2]
[312309928,1705769457098,-151.0,0.00037195,7]
[312309929,1705769457107,-157.78,0.000372,3]
[312309930,1705769457116,-157.78,0.000372,3]
[312309931,1705769457126,-157.78,0.000372,3]
[312309932,1705769457135,-157.78,0.000372,3]
[312309933,1705769457144,-157.78,0.000372,3]
[312309934,1705769457153,-157.78,0.000372,3]
[312309935,1705769457163,-157.78,0.000372,3]
[312309936,1705769457172,-157.78,0.000372,3]
[312309937,1705769457183,-157.78,0.000372,3]
[312309938,1705769457192,-157.78,0.000372,3]
[312309939,1705769457202,-157.78,0.000372,3]
[312309940,1705769457211,-157.78,0.000372,3]
[312309941,1705769457221,-152.23,0.000372,3]
[312309942,1705769457230,-152.23,0.000372,3]
[312309943,1705769457240,-152.23,0.000372,3]
[312309944,1705769457248,-152.23,0.000372,3]
[312309945,1705769457257,-152.23,0.000372,3]
[312309946,1705769457268,-152.23,0.000372,3]
[312309947,1705769457277,-152.23,0.000372,3]
[312309948,1705769457286,-152.23,0.000372,3]
[312309949,1705769457295,-152.23,0.000372,3]
[312309950,1705769457304,-152.23,0.000372,3]
[312309951,1705769457313,-152.23,0.000372,3]
[312309952,1705769457322,-152.23,0.000372,3]
[312309953,1705769457331,-152.23,0.000372,3]
[312309954,1705769457341,-152.23,0.000372,3]
[312309955,1705769457350,-152.23,0.000372,3]
[312309956,1705769457359,-152.23,0.000372,3]
[312309957,1705769457369,-200.0,0.0003726,11]
[312309958,1705769457378,-150.0,0.00037275,2]
[312309959,1705769457387,-608.91,0.000373,2]
[312309960,1705769457396,-1879.0,0.000373,7]
[312309961,1705769457405,-207.0,0.00037394,14]
[312309962,1705769457414,-1138.0,0.00037422,2]
[312309963,1705769457424,-153.84,0.00037443,2]
[312309964,1705769457433,-309.19,0.00037491,2]
[312309965,1705769457442,-256.13,0.00037491,2]
[312309966,1705769457452,-165.51992,0.00037497,2]
[312309967,1705769457461,-167.845247,0.00037497,2]
[312309968,1705769457470,-3525.276,0.00037498,6]
[312309969,1705769457479,-1000.0,0.00037596,2]
[312309970,1705769457488,-2005.81569619,0.00037648,2]
[312309971,1705769457497,-165.512026,0.00037648,2]
[312309972,1705769457506,-2580.035297,0.00037648,2]
[312309973,1705769457532,-7694.22031,0.00037648,2]
[312309974,1705769457547,-7651.641823,0.00037648,2]
[312309975,1705769457566,-397.247805,0.00037648,2]
[312309976,1705769457586,-1841.511521,0.00037648,2]
[312309977,1705769457601,-5306.14429,0.00037648,2]
[312309978,1705769457618,-5327.237969,0.00037648,2]
[312309979,1705769457636,-1589.976747,0.00037648,2]
[312309980,1705769457649,-2035.290778,0.00037648,2]
[312309981,1705769457670,-40014.4,0.00037648,2]
[312309982,1705769457684,-955.93024,0.00037648,2]
[312309983,1705769457702,-25285.74,0.000377,3]
[312309984,1705769457722,-4535.82,0.000378,7]
[312309985,1705769457737,-2247.66,0.000378,7]
[312309986,1705769457751,-11054.48,0.000378,7]
[312309987,1705769457768,-154.0,0.000378,7]
[312309988,1705769457784,-434.0,0.000378,2]
[312309989,1705769457797,-344.0,0.000378,2]
[312309990,1705769457812,-1000.0,0.000378,2]
[312309991,1705769457828,-200.0,0.00037808,12]
[312309992,1705769457844,-7362.55,0.00037808,2]
[312309993,1705769457858,-5502.01,0.00037808,2]
[312309994,1705769457873,-154.27609843,0.00037821,2]
[312309995,1705769457888,-683.75,0.000379,2]
[312309996,1705769457904,-608.91,0.000379,2]
[312309997,1705769457922,-151.0,0.000379,7]
[312309998,1705769457937,-183.229159,0.000379,7]
[312309999,1705769457951,-2000.0,0.000379,2]
[312310000,1705769457966,-151.0,0.000379,7]
[312310001,1705769457983,-151.0,0.000379,7]
[312310002,1705769457997,-223.790203,0.000379,7]
[312310003,1705769458012,-223.790203,0.000379,7]
[312310004,1705769458027,-151.0,0.000379,7]
[312310005,1705769458041,-164.089297,0.000379,7]
[312310006,1705769458056,-159.95238,0.000379,7]
[312310007,1705769458071,-153.12791,0.000379,7]
[312310008,1705769458085,-151.0,0.000379,7]
[312310009,1705769458101,-151.643048,0.000379,7]
[312310010,1705769458116,-151.0,0.000379,7]
[312310011,1705769458131,-4199.02767,0.000379,7]
[312310012,1705769458145,-153.349421,0.000379,7]
[312310013,1705769458161,-151.0,0.000379,7]
[312310014,1705769458176,-1951.31922,0.000379,7]
[312310015,1705769458191,-1951.31922,0.000379,7]
[312310016,1705769458206,-151.0,0.000379,7]
[312310017,1705769458222,-151.302706,0.000379,7]
[312310018,1705769458237,-1549.74933,0.000379,7]
[312310019,1705769458252,-1549.74933,0.000379,7]
[312310020,1705769458268,-151.0,0.000379,7]
[312310021,1705769458283,-603805.469297,0.000379,3]
[312310022,1705769458297,-151.0,0.000379,7]
[312310023,1705769458312,-151.0,0.000379,7]
[312310024,1705769458326,-151.0,0.000379,7]
[312310025,1705769458341,-151.0,0.000379,7]
[312310026,1705769458356,-151.0,0.000379,7]
[312310027,1705769458371,-200.0,0.00037987,12]
[312310028,1705769458386,-100000.0,0.00038,8]
[312310029,1705769458402,-155.0,0.00038,4]
[312310030,1705769458416,-724.93964253,0.00038,30]
[312310031,1705769458429,-10000.0,0.00038,15]
[312310032,1705769458444,-10000.0,0.00038,15]
[312310033,1705769458458,-10000.0,0.00038,15]
[312310034,1705769458472,-10000.0,0.00038,15]
[312310035,1705769458486,-10000.0,0.00038,15]
[312310036,1705769458501,-12245.0,0.00038,15]
[312310037,1705769458515,-150.0,0.00038068,2]
[312310038,1705769458529,-165.512026,0.00038102,2]
[312310039,1705769458544,-172.323371,0.00038102,2]
[312310040,1705769458559,-155.666775,0.00038102,2]
[312310041,1705769458572,-2580.035297,0.00038102,2]
[312310042,1705769458587,-7694.22031,0.00038102,2]
[312310043,1705769458603,-7651.641823,0.00038102,2]
[312310044,1705769458619,-397.247805,0.00038102,2]
[312310045,1705769458633,-1841.511521,0.00038102,2]
[312310046,1705769458642,-5306.14429,0.00038102,2]
[312310047,1705769458651,-5327.237969,0.00038102,2]
[312310048,1705769458661,-1589.976747,0.00038102,2]
[312310049,1705769458670,-2035.290778,0.00038102,2]
[312310051,1705769458862,-40014.4,0.00038102,2]
[312310052,1705769458887,-150.508268,0.00038102,2]
[312310053,1705769458901,-955.93024,0.00038102,2]
[312310054,1705769458910,-165.51992,0.00038102,2]
[312310055,1705769458919,-167.845247,0.00038102,2]
[312310056,1705769458929,-1000.0,0.000382,15]
[312310057,1705769458938,-151.0,0.0003824,7]
[312310058,1705769458947,-9891.5706653,0.00038289,2]
[312310059,1705769458957,-241.09,0.0003833,2]
[312310060,1705769458966,-200.0,0.00038356,13]
[312310061,1705769458975,-2040.82,0.00038356,2]
[312310062,1705769458984,-2040.82,0.00038356,2]
[312310063,1705769458994,-2040.82,0.00038356,2]
[312310064,1705769459004,-2040.82,0.00038356,2]
[312310065,1705769459014,-2040.82,0.00038356,2]
[312310066,1705769459026,-2040.82,0.00038356,2]
[312310067,1705769459036,-2040.82,0.00038356,2]
[312310068,1705769459046,-2040.82,0.00038356,2]
[312310069,1705769459056,-2040.82,0.00038356,2]
[312310070,1705769459065,-2040.82,0.00038356,2]
[312310071,1705769459075,-2040.82,0.00038356,2]
[312310072,1705769459084,-2040.82,0.00038356,2]
[312310073,1705769459094,-2040.82,0.00038356,2]
[312310074,1705769459103,-2040.82,0.00038356,2]
[312310075,1705769459113,-2040.82,0.00038356,2]
[312310076,1705769459122,-2040.82,0.00038356,2]
[312310077,1705769459132,-2040.82,0.00038356,2]
[312310078,1705769459141,-2040.82,0.00038356,2]
[312310079,1705769459151,-2040.82,0.00038356,2]
[312310080,1705769459161,-2040.82,0.00038356,2]
[312310081,1705769459170,-2040.82,0.00038356,2]
[312310082,1705769459179,-2040.82,0.00038356,2]
[312310083,1705769459189,-2040.82,0.00038356,2]
[312310084,1705769459198,-2041.00934692,0.00038356,2]
[312310085,1705769459209,-3024.43,0.00038356,2]
[312310086,1705769459218,-153.84,0.00038356,2]
[312310087,1705769459228,-1000.0,0.00038356,12]
[312310089,1705769459237,-1000.0,0.00038356,12]
[312310090,1705769459247,-1000.0,0.00038356,12]
[312310091,1705769459257,-1000.0,0.00038356,12]
[312310092,1705769459266,-1000.0,0.00038356,12]
[312310093,1705769459275,-1000.0,0.00038356,12]
[312310094,1705769459285,-1000.0,0.00038356,12]
[312310095,1705769459294,-1000.0,0.00038356,12]
[312310096,1705769459303,-1000.0,0.00038356,12]
[312310097,1705769459313,-1000.0,0.00038356,12]
[312310098,1705769459323,-1000.0,0.00038356,12]
[312310099,1705769459332,-1000.0,0.00038356,12]
[312310100,1705769459341,-1000.0,0.00038356,12]
[312310101,1705769459351,-1000.0,0.00038356,12]
[312310102,1705769459360,-1000.0,0.00038356,12]
[312310103,1705769459369,-1000.0,0.00038356,12]
[312310104,1705769459381,-1000.0,0.00038356,12]
[312310105,1705769459391,-1000.0,0.00038356,12]
[312310106,1705769459400,-1000.0,0.00038356,12]
[312310107,1705769459412,-1000.0,0.00038356,12]
[312310108,1705769459422,-1000.0,0.00038356,12]
[312310109,1705769459433,-1000.0,0.00038356,12]
[312310110,1705769459442,-1000.0,0.00038356,12]
[312310111,1705769459451,-1000.0,0.00038356,12]
[312310112,1705769459460,-1000.0,0.00038356,12]
[312310113,1705769459469,-1000.0,0.00038356,12]
[312310114,1705769459478,-1000.0,0.00038356,12]
[312310115,1705769459487,-1000.0,0.00038356,12]
[312310116,1705769459496,-489.0,0.00038356,12]
[312310117,1705769459505,-21959.63,0.00038356,2]
[312310118,1705769459514,-608.91,0.000384,2]
[312310119,1705769459524,-561.0,0.000384,2]
[312310120,1705769459533,-418.59,0.00038407,2]
[312310121,1705769459542,-194.12,0.00038407,2]
[312310122,1705769459551,-150.0,0.00038407,2]
[312310123,1705769459561,-588.66,0.00038407,2]
[312310124,1705769459570,-408.72,0.00038407,2]
[312310125,1705769459579,-418.59,0.00038407,2]
[312310126,1705769459588,-294.44,0.00038407,2]
[312310127,1705769459597,-408.72,0.00038407,2]
[312310128,1705769459607,-418.59,0.00038407,2]
[312310129,1705769459616,-294.11,0.00038407,2]
[312310130,1705769459625,-408.72,0.00038407,2]
[312310131,1705769459636,-418.59,0.00038407,2]
[312310132,1705769459645,-408.72,0.00038407,2]
[312310133,1705769459656,-418.59,0.00038407,2]
[312310134,1705769459666,-164.0,0.00038663,14]
[312310135,1705769459675,-23698.43139006,0.000387,2]
[312310136,1705769459685,-26612.58707247,0.000388,4]
[312310137,1705769459695,-200.0,0.000388,13]
[312310138,1705769459705,-608.91,0.000388,2]
[312310139,1705769459715,-14866.94974667,0.000388,30]
[312310140,1705769459725,-156.15678,0.000388,7]
[312310141,1705769459734,-154.27609843,0.00038823,2]
[312310142,1705769459744,-243.6145975,0.00038839,2]
[312310143,1705769459754,-229.00741884,0.00038839,2]
[312310144,1705769459764,-150.0,0.00038861,2]
[312310145,1705769459774,-57603.51,0.00038879,2]
[312310146,1705769459783,-151.0,0.0003888,7]
[312310147,1705769459794,-2651.89143659,0.0003888,2]
[312310148,1705769459804,-151.0,0.0003888,7]
[312310149,1705769459813,-151.0,0.0003888,7]
[312310150,1705769459823,-151.0,0.0003888,7]
[312310151,1705769459833,-80353.89392628,0.0003888,2]
[312310152,1705769459843,-80353.89392626,0.0003888,2]
[312310153,1705769459852,-80353.89392626,0.0003888,2]
[312310154,1705769459861,-80353.89392626,0.0003888,2]
[312310155,1705769459871,-80353.89392626,0.0003888,2]
[312310156,1705769459880,-80353.89392626,0.0003888,2]
[312310157,1705769459889,-80353.89392626,0.0003888,2]
[312310158,1705769459898,-80353.89392626,0.0003888,2]
[312310159,1705769459908,-80353.89392626,0.0003888,2]
[312310160,1705769459918,-200.0,0.000389,7]
[312310161,1705769459928,-5070.23505996,0.000389,15]
[312310162,1705769459938,-4535.82,0.000389,7]
[312310163,1705769459949,-2247.66,0.000389,7]
[312310164,1705769459960,-11054.48,0.000389,7]
[312310165,1705769459970,-154.0,0.000389,7]
[312310166,1705769459980,-2000.0,0.000389,2]
[312310167,1705769459990,-800.0,0.000389,14]
[312310168,1705769459999,-200.0,0.00038904,14]
[312310169,1705769460009,-154.18814809,0.00038957,4]
[312310170,1705769460019,-84175.0,0.00038977,20]
[312310171,1705769460030,-1741.0,0.00038977,20]
[312310172,1705769460039,-428.0,0.00038977,20]
[312310173,1705769460049,-151.0,0.00038977,7]
[312310174,1705769460058,-151.0,0.00038977,7]
[312310175,1705769460069,-151.0,0.00038977,7]
[312310176,1705769460079,-281.9628098,0.0003898,2]
[312310177,1705769460089,-200.0,0.00038987,13]
[312310178,1705769460098,-100000.0,0.00039,9]
[312310179,1705769460108,-365.059769,0.00039,7]
[312310180,1705769460117,-365.059769,0.00039,7]
[312310181,1705769460127,-350.973492,0.00039,7]
[312310182,1705769460137,-350.973492,0.00039,7]
[312310183,1705769460147,-151.0,0.00039,7]
[312310184,1705769460156,-975.72594921,0.00039,4]
[312310185,1705769460166,-1428.56752818,0.00039,2]
[312310186,1705769460175,-197.01513932,0.00039,4]
[312310187,1705769460185,-87041.329,0.00039,2]
[312310188,1705769460195,-968.24,0.00039,3]
[312310189,1705769460205,-968.24,0.00039,3]
[312310190,1705769460215,-968.24,0.00039,3]
[312310191,1705769460226,-968.24,0.00039,3]
[312310192,1705769460235,-968.24,0.00039,3]
[312310193,1705769460245,-968.24,0.00039,3]
[312310194,1705769460255,-968.24,0.00039,3]
[312310195,1705769460266,-968.24,0.00039,3]
[312310196,1705769460275,-968.24,0.00039,3]
[312310197,1705769460284,-968.24,0.00039,3]
[312310198,1705769460294,-968.24,0.00039,3]
[312310199,1705769460304,-968.24,0.00039,3]
[312310200,1705769460314,-968.24,0.00039,3]
[312310201,1705769460323,-968.24,0.00039,3]
[312310202,1705769460334,-968.24,0.00039,3]
[312310203,1705769460343,-968.24,0.00039,3]
[312310204,1705769460352,-968.24,0.00039,3]
[312310205,1705769460361,-968.24,0.00039,3]
[312310206,1705769460371,-968.24,0.00039,3]
[312310207,1705769460381,-968.24,0.00039,3]
[312310208,1705769460390,-150.91,0.00039,2]
[312310209,1705769460400,-150.91,0.00039,2]
[312310210,1705769460410,-150.91,0.00039,2]
[312310211,1705769460419,-150.91,0.00039,2]
[312310212,1705769460428,-150.91,0.00039,2]
[312310213,1705769460437,-150.91,0.00039,2]
[312310214,1705769460447,-150.91,0.00039,2]
[312310215,1705769460458,-150.91,0.00039,2]
[312310216,1705769460468,-150.91,0.00039,2]
[312310217,1705769460478,-150.91,0.00039,2]
[312310218,1705769460488,-150.91,0.00039,2]
[312310219,1705769460497,-150.91,0.00039,2]
[312310220,1705769460506,-150.91,0.00039,2]
[312310221,1705769460515,-150.91,0.00039,2]
[312310222,1705769460525,-150.91,0.00039,2]
[312310223,1705769460534,-150.91,0.00039,2]
[312310224,1705769460543,-150.91,0.00039,2]
[312310225,1705769460552,-150.91,0.00039,2]
[312310226,1705769460561,-150.91,0.00039,2]
[312310227,1705769460571,-150.91,0.00039,2]
[312310228,1705769460580,-150.91,0.00039,2]
[312310229,1705769460590,-150.91,0.00039,2]
[312310230,1705769460599,-150.91,0.00039,2]
[312310231,1705769460609,-150.91,0.00039,2]
[312310232,1705769460618,-150.91,0.00039,2]
[312310233,1705769460627,-150.91,0.00039,2]
[312310234,1705769460637,-150.91,0.00039,2]
[312310235,1705769460646,-150.91,0.00039,2]
[312310236,1705769460655,-150.91,0.00039,2]
[312310237,1705769460665,-150.91,0.00039,2]
[312310238,1705769460674,-150.91,0.00039,2]
[312310239,1705769460683,-150.91,0.00039,2]
[312310240,1705769460693,-150.91,0.00039,2]
[312310241,1705769460702,-150.91,0.00039,2]
[312310242,1705769460711,-150.91,0.00039,2]
[312310243,1705769460721,-150.91,0.00039,2]
[312310244,1705769460730,-150.91,0.00039,2]
[312310245,1705769460739,-150.91,0.00039,2]
[312310246,1705769460750,-150.91,0.00039,2]
[312310247,1705769460760,-150.91,0.00039,2]
[312310248,1705769460770,-150.91,0.00039,2]
[312310249,1705769460779,-150.91,0.00039,2]
[312310250,1705769460789,-150.91,0.00039,2]
[312310251,1705769460798,-150.91,0.00039,2]
[312310252,1705769460808,-150.91,0.00039,2]
[312310253,1705769460817,-150.91,0.00039,2]
[312310254,1705769460828,-150.91,0.00039,2]
[312310255,1705769460838,-150.91,0.00039,2]
[312310256,1705769460847,-150.91,0.00039,2]
[312310257,1705769460857,-150.91,0.00039,2]
[312310258,1705769460866,-150.91,0.00039,2]
[312310259,1705769460875,-150.91,0.00039,2]
[312310260,1705769460884,-150.91,0.00039,2]
[312310261,1705769460894,-150.91,0.00039,2]
[312310262,1705769460903,-150.91,0.00039,2]
[312310263,1705769460912,-150.91,0.00039,2]
[312310264,1705769460921,-150.91,0.00039,2]
[312310265,1705769460930,-150.91,0.00039,2]
[312310266,1705769460939,-150.91,0.00039,2]
[312310267,1705769460948,-150.91,0.00039,2]
[312310268,1705769460958,-150.91,0.00039,2]
[312310269,1705769460967,-150.91,0.00039,2]
[312310270,1705769460976,-150.91,0.00039,2]
[312310271,1705769460985,-150.91,0.00039,2]
[312310272,1705769460995,-150.91,0.00039,2]
[312310273,1705769461005,-150.91,0.00039,2]
[312310274,1705769461014,-150.91,0.00039,2]
[312310275,1705769461025,-150.91,0.00039,2]
[312310276,1705769461034,-150.91,0.00039,2]
[312310277,1705769461044,-150.91,0.00039,2]